bitfinex-derivatives/quotes_BNBF0:USTF0_20250709
["timestamp","ask_amount","ask_price","bid_price","bid_amount"]
[1752096822936,0.26062047,667.96,667.53,1.55470979]
[1752096823232,0.26062047,667.96,667.54,1.55470979]
[1752096823432,0.26062047,667.96,667.55,1.55470979]
[1752096823632,0.26062047,667.96,667.56,1.55470979]
[1752096823833,0.26062047,667.96,667.57,1.55470979]
[1752096824028,0.26062047,667.96,667.58,1.55470979]
[1752096824232,0.26062047,667.96,667.59,1.55470979]
[1752096824530,0.26062047,667.96,667.6,1.55470979]
[1752096824729,0.26062047,667.96,667.61,1.55470979]
[1752096824928,0.26062047,667.96,667.62,1.55470979]
[1752096825134,0.26062047,667.96,667.63,1.55470979]
[1752096825429,0.26062047,667.96,667.64,1.55470979]
[1752096825632,0.26062047,667.96,667.65,1.55470979]
[1752096825833,0.26062047,667.96,667.66,1.55470979]
[1752096826034,0.26062047,667.96,667.67,1.55470979]
[1752096826229,0.26062047,667.96,667.68,1.55470979]
[1752096826427,0.26062047,667.96,667.69,1.55470979]
[1752096826631,0.26062047,667.96,667.7,1.55470979]
[1752096826831,0.26062047,667.96,667.71,1.55470979]
[1752096827033,0.26062047,667.96,667.72,1.55470979]
[1752096827330,0.26062047,667.96,667.73,1.55470979]
[1752096827628,0.26062047,667.96,667.74,1.55470979]
[1752096827831,0.26062047,667.96,667.75,1.55470979]
[1752096828030,0.26062047,667.96,667.76,1.55470979]
[1752096828234,0.26062047,667.96,667.77,1.55470979]
[1752096828432,0.26062047,667.96,667.78,1.55470979]
[1752096828633,0.26062047,667.96,667.79,1.55470979]
[1752096828837,0.26062047,667.96,667.4,1.68269477]
[1752096829031,0.26062047,667.96,667.41,1.55460459]
[1752096829233,0.26062047,667.96,667.42,1.55460459]
[1752096829435,0.26062047,667.96,667.43,1.55460459]
[1752096829632,0.26062047,667.96,667.44,1.55460459]
[1752096829832,0.26062047,667.96,667.45,1.55460459]
[1752096830038,0.26062047,667.96,667.46,1.55460459]
[1752096830333,0.26062047,667.96,667.47,1.55460459]
[1752096830537,0.26062047,667.96,667.48,1.55460459]
[1752096830737,0.26062047,667.96,667.49,1.55460459]
[1752096830937,0.26062047,667.96,667.5,1.55460459]
[1752096831134,0.26062047,667.96,667.51,1.55460459]
[1752096831433,0.26062047,667.96,667.52,1.55460459]
[1752096831634,0.26062047,667.96,667.53,1.55460459]
[1752096831834,0.26062047,667.96,667.54,1.55460459]
[1752096832035,0.26062047,667.96,667.55,1.55460459]
[1752096832237,0.26062047,667.96,667.56,1.55460459]
[1752096832438,0.26062047,667.96,667.57,1.55460459]
[1752096832637,0.26062047,667.96,667.58,1.55460459]
[1752096832836,0.26062047,667.96,667.59,1.55460459]
[1752096833039,0.26062047,667.96,667.6,1.55460459]
[1752096833336,0.26062047,667.96,667.61,1.55460459]
[1752096833639,0.26062047,667.96,667.62,1.55460459]
[1752096833838,0.26062047,667.96,667.63,1.55460459]
[1752096834140,0.26062047,667.96,667.64,1.55460459]
[1752096834339,0.26062047,667.96,667.37,1.68269477]
[1752096834340,0.26062047,667.96,667.65,1.55460459]
[1752096834534,0.26062047,667.96,667.66,1.55460459]
[1752096834738,0.26062047,667.96,667.37,1.68269477]
[1752096834739,0.26062047,667.96,667.67,1.55460459]
[1752096834938,0.26062047,667.96,667.68,1.55460459]
[1752096835137,0.26062047,667.96,667.69,1.55460459]
[1752096835341,0.26062047,667.96,667.7,1.55460459]
[1752096835636,0.26062047,667.96,667.71,1.55460459]
[1752096835937,0.26062047,667.96,667.72,1.55460459]
[1752096836136,0.26062047,667.96,667.73,1.55460459]
[1752096836341,0.26062047,667.96,667.74,1.55460459]
[1752096836538,0.26062047,667.96,667.75,1.55460459]
[1752096836743,0.26062047,667.96,667.57,2.937]
[1752096836942,0.26062047,667.96,667.58,1.5536077]
[1752096837142,0.26062047,667.96,667.59,1.5536077]
[1752096837345,0.26062047,667.96,667.6,1.5536077]
[1752096837640,0.26062047,667.96,667.61,1.5536077]
[1752096837843,0.26062047,667.96,667.57,2.937]
[1752096837844,0.26062047,667.96,667.62,1.5536077]
[1752096838141,0.26062047,667.96,667.63,1.5536077]
[1752096838344,0.26062047,667.96,667.64,1.5536077]
[1752096838543,0.26062047,667.96,667.65,1.5536077]
[1752096838741,0.26062047,667.96,667.66,1.5536077]
[1752096838944,0.26062047,667.96,667.67,1.5536077]
[1752096839144,0.26062047,667.96,667.68,1.5536077]
[1752096839339,0.26062047,667.96,667.69,1.5536077]
[1752096839544,0.26062047,667.96,667.7,1.5536077]
[1752096839745,0.26062047,667.96,667.71,1.5536077]
[1752096839945,0.26062047,667.96,667.72,1.5536077]
[1752096840139,0.26062047,667.96,667.73,1.5536077]
[1752096840339,0.26062047,667.96,667.74,1.5536077]
[1752096840640,0.26062047,667.96,667.57,2.937]
[1752096840944,0.26062047,667.96,667.58,1.55340022]
[1752096841141,0.26062047,667.96,667.59,1.55340022]
[1752096841345,0.26062047,667.96,667.6,1.55340022]
[1752096841548,0.26062047,667.96,667.61,1.55340022]
[1752096841746,0.26062047,667.96,667.62,1.55340022]
[1752096841943,0.26062047,667.96,667.63,1.55340022]
[1752096842147,0.26062047,667.96,667.64,1.55340022]
[1752096842343,0.26062047,667.96,667.65,1.55340022]
[1752096842546,0.26062047,667.96,667.66,1.55340022]
[1752096842750,0.26062047,667.96,667.67,1.55340022]
[1752096843046,0.26062047,667.96,667.68,1.55340022]
[1752096843249,0.26062047,667.96,667.69,1.55340022]
[1752096843447,0.26062047,667.96,667.7,1.55340022]
[1752096843644,0.26062047,667.96,667.71,1.55340022]
[1752096843845,0.26062047,667.96,667.72,1.55340022]
[1752096844051,0.26062047,667.96,667.73,1.55340022]
[1752096844244,0.26062047,667.96,667.74,1.55340022]
[1752096844552,0.26062047,667.96,667.75,1.55340022]
[1752096844753,0.26062047,667.96,667.57,2.937]
[1752096845047,0.26062047,667.96,667.58,1.55319953]
[1752096845252,0.26062047,667.96,667.59,1.55319953]
[1752096845452,0.26062047,667.96,667.6,1.55319953]
[1752096845751,0.26062047,667.96,667.61,1.55319953]
[1752096845952,0.26062047,667.96,667.62,1.55319953]
[1752096846251,0.26062047,667.96,667.63,1.55319953]
[1752096846548,0.26062047,667.96,667.64,1.55319953]
[1752096846751,0.26062047,667.96,667.65,1.55319953]
[1752096846952,0.26062047,667.96,667.66,1.55319953]
[1752096847153,0.26062047,667.96,667.67,1.55319953]
[1752096847348,0.26062047,667.96,667.68,1.55319953]
[1752096847549,0.26062047,667.96,667.69,1.55319953]
[1752096847852,0.26062047,667.96,667.57,2.937]
[1752096847853,0.26062047,667.96,667.7,1.55319953]
[1752096848052,0.26062047,667.96,667.71,1.55319953]
[1752096848250,0.26062047,667.96,667.72,1.55319953]
[1752096848554,0.26062047,667.96,667.73,1.55319953]
[1752096848755,0.26062047,667.96,667.74,1.55319953]
[1752096848955,0.26062047,667.96,667.75,1.55319953]
[1752096849249,0.26062047,667.96,667.57,2.937]
[1752096849450,0.26062047,667.96,667.58,1.55305508]
[1752096849654,0.26062047,667.96,667.59,1.55305508]
[1752096849953,0.26062047,667.96,667.6,1.55305508]
[1752096850152,0.26062047,667.96,667.61,1.55305508]
[1752096850455,0.26062047,667.96,667.62,1.55305508]
[1752096850755,0.26062047,667.96,667.63,1.55305508]
[1752096851055,0.26062047,667.96,667.64,1.55305508]
[1752096851252,0.26062047,667.96,667.65,1.55305508]
[1752096851456,0.26062047,667.96,667.66,1.55305508]
[1752096851754,0.26062047,667.96,667.67,1.55305508]
[1752096851957,0.26062047,667.96,667.68,1.55305508]
[1752096852156,0.26062047,667.96,667.69,1.55305508]
[1752096852456,0.26062047,667.96,667.7,1.55305508]
[1752096852654,0.26062047,667.96,667.71,1.55305508]
[1752096852956,0.26062047,667.96,667.72,1.55305508]
[1752096853156,0.26062047,667.96,667.73,1.55305508]
[1752096853353,0.26062047,667.96,667.74,1.55305508]
[1752096853553,0.26062047,667.96,667.57,2.937]
[1752096853753,0.26062047,667.96,667.58,1.5530192]
[1752096853955,0.26062047,667.96,667.59,1.5530192]
[1752096854154,0.26062047,667.96,667.6,1.5530192]
[1752096854355,0.26062047,667.96,667.61,1.5530192]
[1752096854554,0.26062047,667.96,667.62,1.5530192]
[1752096854758,0.26062047,667.96,667.63,1.5530192]
[1752096855058,0.26062047,667.96,667.64,1.5530192]
[1752096855358,0.26062047,667.96,667.65,1.5530192]
[1752096855557,0.26062047,667.96,667.66,1.5530192]
[1752096855754,0.26062047,667.96,667.67,1.5530192]
[1752096856056,0.26062047,667.96,667.68,1.5530192]
[1752096856256,0.26062047,667.96,667.69,1.5530192]
[1752096856456,0.26062047,667.96,667.7,1.5530192]
[1752096856657,0.26062047,667.96,667.71,1.5530192]
[1752096856858,0.26062047,667.96,667.72,1.5530192]
[1752096857058,0.26062047,667.96,667.73,1.5530192]
[1752096857256,0.26062047,667.96,667.57,2.937]
[1752096857459,0.26062047,667.96,667.58,1.55302778]
[1752096857755,0.26062047,667.96,667.59,1.55302778]
[1752096857958,0.26062047,667.96,667.6,1.55302778]
[1752096858156,0.26062047,667.96,667.61,1.55302778]
[1752096858356,0.26062047,667.96,667.62,1.55302778]
[1752096858559,0.26062047,667.96,667.63,1.55302778]
[1752096858760,0.26062047,667.96,667.64,1.55302778]
[1752096858960,0.26062047,667.96,667.65,1.55302778]
[1752096859162,0.26062047,667.96,667.66,1.55302778]
[1752096859358,0.26062047,667.96,667.67,1.55302778]
[1752096859563,0.26062047,667.96,667.68,1.55302778]
[1752096859758,0.26062047,667.96,667.69,1.55302778]
[1752096859958,0.26062047,667.96,667.7,1.55302778]
[1752096860162,0.26062047,667.96,667.71,1.55302778]
[1752096860462,0.26062047,667.96,667.72,1.55302778]
[1752096860665,0.26062047,667.96,667.73,1.55302778]
[1752096860866,0.26062047,667.96,667.57,2.937]
[1752096861064,0.26062047,667.96,667.58,1.55305491]
[1752096861360,0.26062047,667.96,667.59,1.55305491]
[1752096861562,0.26062047,667.96,667.6,1.55305491]
[1752096861861,0.26062047,667.96,667.61,1.55305491]
[1752096862061,0.26062047,667.96,667.62,1.55305491]
[1752096862266,0.26062047,667.96,667.63,1.55305491]
[1752096862566,0.26062047,667.96,667.64,1.55305491]
[1752096862766,0.26062047,667.96,667.65,1.55305491]
[1752096862968,0.26062047,667.96,667.66,1.55305491]
[1752096863162,0.26062047,667.96,667.67,1.55305491]
[1752096863362,0.26062047,667.96,667.68,1.55305491]
[1752096863665,0.26062047,667.96,667.69,1.55305491]
[1752096863867,0.26062047,667.96,667.7,1.55305491]
[1752096864064,0.26062047,667.96,667.71,1.55305491]
[1752096864265,0.26062047,667.96,667.72,1.55305491]
[1752096864462,0.26062047,667.96,667.73,1.55305491]
[1752096864668,0.26062047,667.96,667.57,2.937]
[1752096864867,0.26062047,667.96,667.58,1.55314555]
[1752096865071,0.26062047,667.96,667.59,1.55314555]
[1752096865263,0.26062047,667.96,667.6,1.55314555]
[1752096865468,0.26062047,667.96,667.61,1.55317397]
[1752096865667,0.26062047,667.96,667.62,1.55317397]
[1752096865867,0.26062047,667.96,667.63,1.55317397]
[1752096866067,0.26062047,667.96,667.64,1.55317397]
[1752096866268,0.26062047,667.96,667.65,1.55317397]
[1752096866465,0.26062047,667.96,667.66,1.55317397]
[1752096866665,0.26062047,667.96,667.67,1.55317397]
[1752096866969,0.26062047,667.96,667.68,1.55317397]
[1752096867172,0.26062047,667.96,667.69,1.55317397]
[1752096867366,0.26062047,667.96,667.7,1.55317397]
[1752096867573,0.26062047,667.96,667.71,1.55317397]
[1752096867771,0.26062047,667.96,667.72,1.55317397]
[1752096867973,0.26062047,667.96,667.73,1.55317397]
[1752096868174,0.26062047,667.96,667.74,1.55317397]
[1752096868470,0.26062047,667.96,667.57,2.937]
[1752096868671,0.26062047,667.96,667.58,1.55328442]
[1752096868871,0.26062047,667.96,667.59,1.55328442]
[1752096869073,0.26062047,667.96,667.6,1.55328442]
[1752096869372,0.26062047,667.96,667.61,1.55328442]
[1752096869573,0.26062047,667.96,667.62,1.55328442]
[1752096869771,0.26062047,667.96,667.57,2.937]
[1752096869772,0.26062047,667.96,667.63,1.55328442]
[1752096869968,0.26062047,667.96,667.64,1.55328442]
[1752096870169,0.26062047,667.96,667.65,1.55328442]
[1752096870471,0.26062047,667.96,667.66,1.55328442]
[1752096870672,0.26062047,667.96,667.52,1.68201554]
[1752096870673,0.26062047,667.96,667.67,1.55328442]
[1752096870873,0.26062047,667.96,667.68,1.55328442]
[1752096871173,0.26062047,667.96,667.69,1.55328442]
[1752096871474,0.26062047,667.96,667.7,1.55328442]
[1752096871773,0.26062047,667.96,667.53,1.68201554]
[1752096871774,0.26062047,667.96,667.71,1.55328442]
[1752096872070,0.26062047,667.96,667.72,1.55328442]
[1752096872277,0.26062047,667.96,667.73,1.55328442]
[1752096872476,0.26062047,667.96,667.74,1.55328442]
[1752096872676,0.26062047,667.96,667.75,1.55328442]
[1752096872876,0.26062047,667.96,667.53,1.68201554]
[1752096873078,0.26062047,667.96,667.54,1.55349632]
[1752096873278,0.26062047,667.96,667.55,1.55349632]
[1752096873477,0.26062047,667.96,667.56,1.55349632]
[1752096873679,0.26062047,667.96,667.57,1.55349632]
[1752096873879,0.26062047,667.96,667.58,1.55349632]
[1752096874080,0.26062047,667.96,667.59,1.55349632]
[1752096874278,0.26062047,667.96,667.6,1.55349632]
[1752096874476,0.26062047,667.96,667.61,1.55349632]
[1752096874677,0.26062047,667.96,667.62,1.55349632]
[1752096874977,0.26062047,667.96,667.63,1.55349632]
[1752096875175,0.26062047,667.96,667.64,1.55349632]
[1752096875379,0.26062047,667.96,667.65,1.55349632]
[1752096875580,0.26062047,667.96,667.66,1.55349632]
[1752096875780,0.26062047,667.96,667.67,1.55349632]
[1752096875981,0.26062047,667.96,667.68,1.55349632]
[1752096876280,0.26062047,667.96,667.69,1.55349632]
[1752096876476,0.26062047,667.96,667.7,1.55349632]
[1752096876680,0.26062047,667.96,667.71,1.55349632]
[1752096876982,0.26062047,667.96,667.72,1.55349632]
[1752096877181,0.26062047,667.96,667.73,1.55349632]
[1752096877377,0.26062047,667.96,667.74,1.55349632]
[1752096877582,0.26062047,667.96,667.75,1.55349632]
[1752096877781,0.26062047,667.96,667.76,1.55349632]
[1752096877983,0.26062047,667.96,667.6,2.36]
[1752096878277,0.26062047,667.96,667.61,1.55389609]
[1752096878480,0.26062047,667.96,667.62,1.55389609]
[1752096878777,0.26062047,667.96,667.63,1.55389609]
[1752096878980,0.26062047,667.96,667.64,1.55389609]
[1752096879182,0.26062047,667.96,667.65,1.55389609]
[1752096879382,0.26062047,667.96,667.66,1.55389609]
[1752096879583,0.26062047,667.96,667.67,1.55389609]
[1752096879785,0.26062047,667.96,667.68,1.55389609]
[1752096879984,0.26062047,667.96,667.69,1.55389609]
[1752096880184,0.26062047,667.96,667.7,1.55389609]
[1752096880385,0.26062047,667.96,667.6,2.36]
[1752096880386,0.26062047,667.96,667.71,1.55389609]
[1752096880584,0.26062047,667.96,667.6,2.36]
[1752096880585,0.26062047,667.96,667.72,1.55389609]
[1752096880782,0.26062047,667.96,667.73,1.55389609]
[1752096880982,0.26062047,667.96,667.74,1.55389609]
[1752096881180,0.26062047,667.96,667.75,1.55389609]
[1752096881486,0.26062047,667.96,667.76,1.55389609]
[1752096881683,0.26062047,667.96,667.77,1.55389609]
[1752096881886,0.26062047,667.96,667.6,2.36]
[1752096882082,0.26062047,667.96,667.61,1.55437935]
[1752096882288,0.26062047,667.96,667.62,1.55437935]
[1752096882582,0.26062047,667.96,667.63,1.55437935]
[1752096882783,0.26062047,667.96,667.64,1.55437935]
[1752096882988,0.26062047,667.96,667.65,1.55437935]
[1752096883187,0.26062047,667.96,667.66,1.55437935]
[1752096883385,0.26062047,667.96,667.67,1.55437935]
[1752096883590,0.26062047,667.96,667.68,1.55437935]
[1752096883789,0.26062047,667.96,667.6,2.36]
[1752096883790,0.26062047,667.96,667.69,1.55437935]
[1752096883990,0.26062047,667.96,667.7,1.55437935]
[1752096884189,0.26062047,667.96,667.71,1.55437935]
[1752096884490,0.26062047,667.96,667.72,1.55437935]
[1752096884691,0.26062047,667.96,667.73,1.55437935]
[1752096884991,0.26062047,667.96,667.74,1.55437935]
[1752096885286,0.26062047,667.96,667.75,1.55437935]
[1752096885490,0.26062047,667.96,667.76,1.55437935]
[1752096885687,0.26062047,667.96,667.77,1.55437935]
[1752096885986,0.26062047,667.96,667.78,1.55437935]
[1752096886190,0.26062047,667.96,667.79,1.55437935]
[1752096886387,0.26062047,667.96,667.6,2.36]
[1752096886587,0.26062047,667.96,667.61,1.5552562]
[1752096886791,0.26062047,667.96,667.62,1.5552562]
[1752096886989,0.26062047,667.96,667.63,1.5552562]
[1752096887192,0.26062047,667.96,667.64,1.5552562]
[1752096887393,0.26062047,667.96,667.65,1.5552562]
[1752096887593,0.26062047,667.96,667.66,1.5552562]
[1752096887793,0.26062047,667.96,667.67,1.5552562]
[1752096887993,0.26062047,667.96,667.68,1.5552562]
[1752096888188,0.26062047,667.96,667.69,1.5552562]
[1752096888495,0.26062047,667.96,667.7,1.5552562]
[1752096888691,0.26062047,667.96,667.71,1.5552562]
[1752096888889,0.26062047,667.96,667.72,1.5552562]
[1752096889090,0.26062047,667.96,667.73,1.5552562]
[1752096889293,0.26062047,667.96,667.74,1.5552562]
[1752096889493,0.26062047,667.96,667.75,1.5552562]
[1752096889695,0.26062047,667.96,667.76,1.5552562]
[1752096889891,0.26062047,667.96,667.77,1.5552562]
[1752096890095,0.26062047,667.96,667.78,1.5552562]
[1752096890296,0.26062047,667.96,667.79,1.5552562]
[1752096890494,0.26062047,667.96,667.6,2.36]
[1752096890698,0.26062047,667.96,667.61,1.55541215]
[1752096890896,0.26062047,667.96,667.62,1.55541215]
[1752096891097,0.26062047,667.96,667.63,1.55541215]
[1752096891299,0.26062047,667.96,667.64,1.55541215]
[1752096891499,0.26062047,667.96,667.65,1.55541215]
[1752096891798,0.26062047,667.96,667.66,1.55541215]
[1752096892096,0.26062047,667.96,667.67,1.55541215]
[1752096892300,0.26062047,667.96,667.68,1.55541215]
[1752096892497,0.26062047,667.96,667.69,1.55541215]
[1752096892702,0.26062047,667.96,667.7,1.55541215]
[1752096892996,0.26062047,667.96,667.71,1.55541215]
[1752096893201,0.26062047,667.96,667.72,1.55541215]
[1752096893402,0.26062047,667.96,667.73,1.55541215]
[1752096893600,0.26062047,667.96,667.74,1.55541215]
[1752096893798,0.26062047,667.96,667.75,1.55541215]
[1752096894001,0.26062047,667.96,667.76,1.55541215]
[1752096894202,0.26062047,667.96,667.77,1.55541215]
[1752096894401,0.26062047,667.96,667.78,1.55541215]
[1752096894596,0.26062047,667.96,667.6,2.36]
[1752096894799,0.26062047,667.96,667.61,1.55540415]
[1752096895096,0.26062047,667.96,667.62,1.55540415]
[1752096895298,0.26062047,667.96,667.63,1.55540415]
[1752096895499,0.26062047,667.96,667.64,1.55540415]
[1752096895698,0.26062047,667.96,667.65,1.55540415]
[1752096895898,0.26062047,667.96,667.66,1.55540415]
[1752096896097,0.26062047,667.96,667.67,1.55540415]
[1752096896301,0.26062047,667.96,667.68,1.55540415]
[1752096896496,0.26062047,667.96,667.69,1.55540415]
[1752096896697,0.26062047,667.96,667.7,1.55540415]
[1752096896900,0.26062047,667.96,667.71,1.55540415]
[1752096897197,0.26062047,667.96,667.72,1.55540415]
[1752096897401,0.26062047,667.96,667.73,1.55540415]
[1752096897599,0.26062047,667.96,667.74,1.55540415]
[1752096897800,0.26062047,667.96,667.75,1.55540415]
[1752096898002,0.26062047,667.96,667.76,1.55540415]
[1752096898200,0.26062047,667.96,667.77,1.55540415]
[1752096898401,0.26062047,667.96,667.78,1.55540415]
[1752096898606,0.26062047,667.96,667.6,2.36]
[1752096898804,0.26062047,667.96,667.61,1.5553852]
[1752096899106,0.26062047,667.96,667.62,1.5553852]
[1752096899303,0.26062047,667.96,667.63,1.5553852]
[1752096899506,0.26062047,667.96,667.64,1.5553852]
[1752096899707,0.26062047,667.96,667.65,1.5553852]
[1752096899906,0.26062047,667.96,667.66,1.5553852]
[1752096900203,0.26062047,667.96,667.67,1.5553852]
[1752096900401,0.26062047,667.96,667.68,1.5553852]
[1752096900606,0.26062047,667.96,667.69,1.5553852]
[1752096900806,0.26062047,667.96,667.7,1.5553852]
[1752096901005,0.26062047,667.96,667.71,1.5553852]
[1752096901209,0.26062047,667.96,667.72,1.5553852]
[1752096901408,0.26062047,667.96,667.73,1.5553852]
[1752096901604,0.26062047,667.96,667.74,1.5553852]
[1752096901907,0.26062047,667.96,667.75,1.5553852]
[1752096902108,0.26062047,667.96,667.76,1.5553852]
[1752096902308,0.26062047,667.96,667.77,1.5553852]
[1752096902607,0.26062047,667.96,667.6,2.36]
[1752096902808,0.26062047,667.96,667.61,1.55538806]
[1752096903005,0.26062047,667.96,667.62,1.55538806]
[1752096903208,0.26062047,667.96,667.6,2.36]
[1752096903209,0.26062047,667.96,667.63,1.55538806]
[1752096903402,0.26062047,667.96,667.64,1.55538806]
[1752096903703,0.26062047,667.96,667.65,1.55538806]
[1752096903907,0.26062047,667.96,667.66,1.55538806]
[1752096904207,0.26062047,667.96,667.67,1.55538806]
[1752096904405,0.26062047,667.96,667.68,1.55538806]
[1752096904603,0.26062047,667.96,667.69,1.55538806]
[1752096904904,0.26062047,667.96,667.7,1.55538806]
[1752096905103,0.26062047,667.96,667.71,1.55538806]
[1752096905304,0.26062047,667.96,667.72,1.55538806]
[1752096905508,0.26062047,667.96,667.73,1.55538806]
[1752096905702,0.26062047,667.96,667.74,1.55538806]
[1752096905903,0.26062047,667.96,667.6,2.36]
[1752096906310,3.34784399,668.29,667.6,2.36]
[1752096906504,0.26058242,667.89,667.6,2.36]
[1752096906805,3.34784399,668.32,667.6,2.36]
[1752096907009,0.26057949,667.89,667.6,2.36]
[1752096907309,3.34784399,668.27,667.6,2.36]
[1752096907505,3.34784399,668.21,667.6,2.36]
[1752096908411,3.34784399,668.22,667.6,2.36]
[1752096909410,3.34784399,668.23,667.6,2.36]
[1752096909711,3.34784399,668.24,667.6,2.36]
[1752096910410,3.34784399,668.25,667.6,2.36]
[1752096910607,3.34784399,668.24,667.6,2.36]
[1752096911307,3.34784399,668.26,667.6,2.36]
[1752096911513,3.34784399,668.26,667.09,1.68201554]
[1752096911712,3.34784399,668.26,667.1,1.55103379]
[1752096912012,3.34784399,668.26,667.11,1.55103379]
[1752096912209,3.34784399,668.26,667.12,1.55103379]
[1752096912412,3.34784399,668.26,667.13,1.55103379]
[1752096912706,3.34784399,668.21,667.14,1.55103379]
[1752096912908,3.34784399,668.21,667.15,1.55103379]
[1752096913108,3.34784399,668.21,667.16,1.55103379]
[1752096913409,7.81163599,669.29,666.75,3.3631495]
[1752096913410,3.34784399,668.16,667.17,1.55103379]
[1752096913608,3.34784399,668.09,667.18,1.55103379]
[1752096913813,3.34784399,668.03,667.19,1.55103379]
[1752096914014,3.34784399,668.03,667.2,1.55103379]
[1752096914313,3.34784399,668.03,667.19,2.429]
[1752096914314,3.34784399,667.99,667.21,1.55103379]
[1752096914610,3.34784399,667.94,667.22,1.55103379]
[1752096914812,3.34784399,667.94,667.23,1.55103379]
[1752096915011,3.34784399,667.94,667.24,1.55103379]
[1752096915211,3.34784399,668.01,667.25,1.55103379]
[1752096915510,3.34784399,668.02,667.26,1.55103379]
[1752096915714,3.34784399,668.01,667.27,1.55103379]
[1752096915912,3.34784399,668.01,667.28,1.55103379]
[1752096916115,3.34784399,668.01,667.29,1.55103379]
[1752096916312,3.34784399,668.02,667.19,2.429]
[1752096916613,3.34784399,668.04,667.2,1.54932644]
[1752096916815,3.34784399,668.04,667.21,1.54932644]
[1752096917014,3.34784399,668.04,667.22,1.54932644]
[1752096917311,3.34784399,668.04,667.23,1.54932644]
[1752096917515,3.34784399,668.06,667.24,1.54932644]
[1752096917711,3.34784399,668.06,667.25,1.54932644]
[1752096917912,3.34784399,668.06,667.26,1.54932644]
[1752096918214,3.34784399,668.06,667.27,1.54932644]
[1752096918412,3.34784399,668.08,667.28,1.54932644]
[1752096918612,3.34784399,668.1,667.29,1.54932644]
[1752096918817,3.34784399,667.95,667.19,2.429]
[1752096919318,3.34784399,667.99,667.19,2.429]
[1752096920517,3.34784399,668.02,667.19,2.429]
[1752096921420,3.34784399,668.05,667.19,2.429]
[1752096922016,3.34784399,668.04,667.19,2.429]
[1752096922421,3.34784399,668.07,667.19,2.429]
[1752096923521,3.34784399,668.1,667.19,2.429]
[1752096924317,3.34784399,668.12,667.19,2.429]
[1752096925424,3.34784399,668.13,667.19,2.429]
[1752096925617,3.34784399,668.14,667.19,2.429]
[1752096926422,3.34784399,668.16,667.19,2.429]
[1752096927423,3.34784399,668.26,667.19,2.429]
[1752096927624,3.34784399,668.27,667.19,2.429]
[1752096927824,3.34784399,668.28,667.19,2.429]
[1752096928523,3.34784399,668.27,667.19,2.429]
[1752096929523,3.34784399,668.28,667.19,2.429]
[1752096930727,3.34784399,668.29,667.19,2.429]
[1752096931122,3.34784399,668.28,667.19,2.429]
[1752096931323,3.34784399,668.29,667.19,2.429]
[1752096931523,3.34784399,668.28,667.19,2.429]
[1752096932428,3.34784399,668.29,667.19,2.429]
[1752096932823,3.34784399,668.36,667.19,2.429]
[1752096933627,3.34784399,668.37,667.19,2.429]
[1752096934424,3.34784399,668.38,667.19,2.429]
[1752096934625,3.34784399,668.37,667.19,2.429]
[1752096934825,3.34784399,668.38,667.19,2.429]
[1752096935328,3.34784399,668.39,667.19,2.429]
[1752096936531,3.34784399,668.4,667.19,2.429]
[1752096936827,3.34784399,668.39,667.19,2.429]
[1752096937529,3.34784399,668.4,667.19,2.429]
[1752096938334,3.34784399,668.41,667.19,2.429]
[1752096939537,3.34784399,668.5,667.19,2.429]
[1752096939934,3.34784399,668.48,667.19,2.429]
[1752096940536,3.34784399,668.43,667.19,2.429]
[1752096940937,3.34784399,668.42,667.19,2.429]
[1752096941142,3.34784399,668.38,667.19,2.429]
[1752096941337,3.34784399,668.39,667.19,2.429]
[1752096942342,3.34784399,668.36,667.19,2.429]
[1752096942638,3.34784399,668.37,667.19,2.429]
[1752096942939,3.34784399,668.33,667.19,2.429]
[1752096943443,3.34784399,668.34,667.19,2.429]
[1752096944545,3.34784399,668.35,667.19,2.429]
[1752096945041,3.34784399,668.32,667.19,2.429]
[1752096945541,3.34784399,668.33,667.19,2.429]
[1752096947744,3.34784399,668.3,667.19,2.429]
[1752096948446,3.34784399,668.23,667.19,2.429]
[1752096948642,3.34784399,668.22,667.19,2.429]
[1752096948841,3.34784399,668.23,667.19,2.429]
[1752096949143,3.34784399,668.18,667.19,2.429]
[1752096949342,3.34784399,668.13,667.19,2.429]
[1752096949943,3.34784399,668.12,667.19,2.429]
[1752096950846,5.57973999,668.67,667.19,2.429]
[1752096950847,3.34784399,668.11,667.19,2.429]
[1752096951349,3.34784399,668.09,667.19,2.429]
[1752096951550,3.34784399,668.11,667.19,2.429]
[1752096952346,3.34784399,668.1,667.19,2.429]
[1752096953450,3.34784399,668.11,667.19,2.429]
[1752096953751,3.34784399,668.13,667.19,2.429]
[1752096953949,3.34784399,668.12,667.19,2.429]
[1752096954349,3.34784399,668.11,667.19,2.429]
[1752096954648,3.34784399,668.1,667.19,2.429]
[1752096954847,3.34784399,668.12,667.19,2.429]
[1752096955450,3.34784399,668.1,667.19,2.429]
[1752096955950,3.34784399,668.1,666.87,0.26070931]